Cogmind - Beta 10.2 @@@ ROGUE MODE // 2021.02.14 @ 19:08:22 Player: Pitt Result: Destroyed by S-10 Pest with Light Assault Rifle Performance ------------- Evolutions (0) 0 Regions Visited (1) 200 Robots Destroyed (15) 75 Value Destroyed (239) 239 Prototype IDs (0) 0 Alien Tech Used (0) 0 Bonus (0) 0 TOTAL SCORE: 514 Bonus ------- None Cogmind --------- Core Integrity 0/250 Matter 182/300 Energy 87/100 System Corruption 0% Temperature Cool (6) Movement Flying (200) Ox2 Location -10/Materials Parts ------- > --- POWER (1) -------- (None) > --- PROPULSION (2) --- Flight Unit > --- UTILITY (2) ------ Medium Storage Unit Seismic Analyzer > --- WEAPON (2) ------- Small Laser > --- INVENTORY (8) ---- Hover Unit Hover Unit Visual Processing Unit Signal Interpreter Seismic Analyzer Mining Laser Peak State ------------ > --- POWER ------------ Ion Engine > --- PROPULSION ------- Aluminum Leg Aluminum Leg > --- UTILITY ---------- Small Storage Unit Seismic Analyzer > --- WEAPON ----------- EM Pulse Gun Assault Rifle > --- INVENTORY -------- (None) [Rating: 7] Favorites ----------- Power Ion Engine Engine Ion Engine Propulsion Aluminum Leg Leg Aluminum Leg Flight Unit Flight Unit Utility Seismic Analyzer Storage Medium Storage Unit Processor Seismic Analyzer Weapon EM Pulse Gun Energy Gun EM Pulse Gun Energy Cannon Beam Cannon Ballistic Gun Assault Rifle Build | -11 -10 ------- Run | Scr Mat Slots Evolved . | . . Power . | . . Propulsion . | . . Utility . | . . Weapon . | . . Parts Attached 19 | 7 12 Power 4 | 1 3 Engine 4 | 1 3 Core . | . . Reactor . | . . Propulsion 5 | 2 3 Treads . | . . Leg 2 | 2 . Wheel . | . . Hover . | . . Flight 3 | . 3 Utility 3 | 2 1 Device . | . . Storage 2 | 1 1 Processor 1 | 1 . Hackware . | . . Protection . | . . Artifact . | . . Weapon 7 | 2 5 Energy Gun 3 | 1 2 Energy Cannon 1 | . 1 Ballistic Gun 3 | 1 2 Ballistic Cannon . | . . Launcher . | . . Special Weapon . | . . Impact Weapon . | . . Slashing Weapon . | . . Piercing Weapon . | . . Special Melee Weapon . | . . Unidentified Prototypes . | . . Parts Lost 8 | . 8 Power 2 | . 2 Propulsion 3 | . 3 Utility . | . . Weapon 3 | . 3 Highest Loss Streak 8 | . 8 Average Slot Usage (%) 93 | . 93 Engine 12 | . 12 Leg 24 | . 24 Flight 1 | . 1 Storage 14 | . 14 Processor 14 | . 14 Energy Gun 11 | . 11 Energy Cannon 5 | . 5 Ballistic Gun 8 | . 8 Naked Turns . | . . Heaviest Build 18 | 13 18 Greatest Support 20 | 20 20 Greatest Overweight (x) 3 | . 3 Average Overweight (x) . | . . Largest Inventory Capacity 8 | 6 8 Average Capacity 6 | 5 7 Most Carried 8 | 3 8 Average Carried 5 | 1 6 Final Capacity 8 | 6 8 Final Carried 6 | 3 6 Class Distribution -------------------- 100% | Mutant Dominant Class ---------------- Mutant | -10/Materials Resources | -11 -10 ----------- Run | Scr Mat Matter Collected 329 | 208 121 Remotely . | . . Salvage Created 495 | 131 364 Parts 35 | 10 25 Haulers Intercepted . | . . Recyclers Shooed . | . . Parts Field Recycled . | . . Retrieved Matter . | . . Parts Self-Destructed . | . . Prevented . | . . Kills | -11 -10 ------- Run | Scr Mat Combat Hostiles Destroyed 8 | . 8 Guns 5 | . 5 Cannons 3 | . 3 Classes Destroyed 6 | 2 4 Worker 1 | . 1 Tunneler 3 | 3 . Recycler 2 | 1 1 Watcher 1 | . 1 Swarmer 4 | . 4 Grunt 4 | . 4 Best Kill Streak 4 | 3 4 Combat Bots Only 4 | . 4 Max Kills in Single Turn 1 | 1 1 Gunslinging . | . . Exploded . | . . Melee . | . . Uniques/NPCs Destroyed . | . . Combat | -11 -10 -------- Run | Scr Mat Damage Taken 870 | . 870 Core 253 | . 253 Absorbed by Shields . | . . Core Remaining (%) 100 | 100 . Volleys Fired 53 | 11 42 Largest 2 | 2 2 Hottest 100 | 60 100 Shots Fired 89 | 22 67 Gun 68 | 22 46 Cannon 21 | . 21 Launcher . | . . Special . | . . Kinetic 41 | 11 30 Thermal 21 | . 21 Explosive . | . . Electromagnetic 27 | 11 16 Robot Hit Streak 6 | 6 5 Robot Miss Streak 5 | 2 5 Penetration Max . | . . Secondary Targets . | . . Shots Hit Robots 50 | 14 36 Core Hits 20 | 5 15 Critical Hits . | . . Critical Kills . | . . Critical Parts Destroyed . | . . Melee Attacks . | . . Impact . | . . Slashing . | . . Piercing . | . . Sneak Attacks . | . . Combat Hostiles . | . . Follow-up Attacks . | . . Damage Inflicted 593 | 168 425 Guns 454 | 168 286 Cannons 139 | . 139 Explosions . | . . Melee . | . . Ramming . | . . Kinetic 238 | 90 148 Thermal 139 | . 139 Explosive . | . . Electromagnetic 216 | 78 138 Impact . | . . Slashing . | . . Piercing . | . . Highest Corruption . | . . Average Corruption . | . . Corruption Purged . | . . Overload Shots . | . . Overflow Damage 9 | . 9 Projectiles 9 | . 9 Explosions . | . . Melee . | . . Knockbacks . | . . Impact . | . . Kinetic . | . . Secondary . | . . Self-Inflicted Damage . | . . Shots . | . . Rammed . | . . Targets Rammed . | . . Kicked . | . . Crushed . | . . Highest Temperature 353 | . 353 Average Temperature 130 | . 130 Received Heat Transfer 189 | . 189 Effects 5 | . 5 Shutdowns 1 | . 1 Energy Bleed 1 | . 1 Interference 3 | . 3 Siege Activations . | . . Robots Corrupted . | . . Combat Hostiles . | . . Parts Fried 1 | . 1 Impact Corruptions . | . . Robots Melted . | . . Combat Hostiles . | . . Parts Melted . | . . Heat Transferred 296 | . 296 Parts Sabotaged . | . . Parts Stolen . | . . Parts Stripped . | . . Power Chain Reactions . | . . Missiles Intercepted . | . . Alert | -11 -10 ------- Run | Scr Mat Peak Influence 185 | 20 185 Initial 13 | . 13 Average 54 | 9 64 Maximum Alert Level . | . . Low Security (%) 100 | 100 100 Level 1 . | . . Level 2 . | . . Level 3 . | . . Level 4 . | . . Level 5 . | . . High Security . | . . Max Security . | . . Squads Dispatched 4 | . 4 Investigation 3 | . 3 Extermination . | . . Reinforcement 1 | . 1 Assault . | . . Garrison . | . . Intercept . | . . Construction Impeded . | . . Haulers Reinforced . | . . Stealth | -11 -10 --------- Run | Scr Mat Distress Signals . | . . Communications Jammed . | . . Distress Signals . | . . Times Spotted 22 | . 22 Peak Tracking Total 6 | . 6 Tactical Retreats 1 | . 1 Traps | -11 -10 ------- Run | Scr Mat Traps Triggered 5 | . 5 Indirectly . | . . Trap Hack Attempts . | . . Triggered . | . . Disarmed . | . . Reprogrammed . | . . Reused . | . . Traps Extracted . | . . Installed . | . . Triggered . | . . Machines | -11 -10 ---------- Run | Scr Mat Machines Disabled . | . . Max in Single Turn . | . . Machines Sabotaged . | . . Garrisons Compromised . | . . Overloaded Fab Kills . | . . Fab Network Shutdowns . | . . Hacking | -11 -10 --------- Run | Scr Mat Machines Accessed . | . . Terminals . | . . Fabricators . | . . Repair Stations . | . . Recycling Units . | . . Scanalyzers . | . . Garrison Access . | . . Total Hacks . | . . Successful . | . . Failed . | . . Catastrophic . | . . Database Lockouts . | . . Manual . | . . Terminals . | . . Fabricators . | . . Repair Stations . | . . Recycling Units . | . . Scanalyzers . | . . Garrison Access . | . . Terminal Hacks . | . . Fabricator Hacks . | . . Repair Station Hacks . | . . Recycling Unit Hacks . | . . Scanalyzer . | . . Garrison Access Hacks . | . . Unauthorized Hacks . | . . Terminals . | . . Fabricators . | . . Repair Stations . | . . Recycling Units . | . . Scanalyzers . | . . Garrison Access . | . . Data Cores Recovered . | . . Used . | . . Hacking Detections . | . . Full Trace Events . | . . Feedback Events . | . . Feedback Blocked . | . . Robot Schematics Acquired . | . . Robots Built . | . . Matter . | . . Time . | . . Total Robot Build Rating . | . . Part Schematics Acquired . | . . Parts Built . | . . Matter . | . . Time . | . . Total Part Build Rating . | . . Parts Repaired . | . . Time . | . . Parts Recycled . | . . Recycled Matter . | . . Retrieved Matter . | . . Retrieved Components . | . . Parts Scanalyzed . | . . Part Schematics Acquired . | . . Parts Damaged . | . . Bothacking | -11 -10 ------------ Run | Scr Mat Used RIF Installer . | . . Robots Hacked . | . . Non-combat . | . . Combat . | . . Robot Hacks Applied . | . . Relay Couplers Released . | . . Robots Rewired . | . . Allies Hacked . | . . Hacks Repelled . | . . Allies | -11 -10 -------- Run | Scr Mat Total Allies . | . . Largest Group . | . . Highest-Rated Group . | . . Highest-Rated Ally . | . . Total Orders . | . . Ally Attacks . | . . Total Damage . | . . Kills . | . . Allies Corrupted . | . . Allies Melted . | . . Intel | -11 -10 ------- Run | Scr Mat Robot Analysis Total . | . . Derelict Logs Recovered . | . . Drone Launches . | . . Drone Recoveries . | . . Exploration | -11 -10 ------------- Run | Scr Mat Turns Passed 658 | 115 543 Spaces Moved 362 | 54 308 Core 8 | 5 3 Treads . | . . Legs 327 | 49 278 Wheels . | . . Hover . | . . Flight 27 | . 27 Fastest Speed 37 | 50 37 Average Speed 118 | 113 118 Slowest Speed 280 | 120 280 Overloaded Moves . | . . Propulsion Burnouts . | . . Robots Hopped . | . . Cave-ins Triggered . | . . Exploration Rate (%) 30 | 4 56 Regions Visited 1 Branch Regions . Pre-discovered Areas . | . . Known Exits Taken . | . . Unknown Exits Taken 1 | 1 . Scrap Searched . | . . Spaces Dug . | . . Terrain Destroyed . | . . Melee . | . . Projectile . | . . AOE . | . . Terrain Rammed . | . . Walls Destroyed . | . . Machines Disabled . | . . Actions | -11 -10 --------- Run | Scr Mat Total 499 | 82 417 Wait 55 | 8 47 Move 361 | 53 308 Hop . | . . Pick Up 9 | 3 6 Fast Attach 13 | 7 6 Attach 3 | . 3 Detach . | . . Swap 3 | . 3 Drop 2 | . 2 Fire 53 | 11 42 Melee . | . . Ram . | . . Kick . | . . Crush . | . . Escape Stasis . | . . Rewire . | . . Trap . | . . Miscellaneous . | . . Route ------- -11/Scrapyard -10/Materials History --------- Turn | Location | Event 12 | -11/Scrapyard | Discovered new exit (range 14) 116 | -11/Scrapyard | Entered Materials 329 | -10/Materials | Build established: Mutant 611 | -10/Materials | Core integrity fell below 50% 647 | -10/Materials | Core integrity fell below 20% 659 | -10/Materials | Destroyed by S-10 Pest with Light Assault Rifle Last Messages --------------- 00612_ Recycling unit begins recycling process. 00612_ K-01 Serf collects debris. 00614_ R-06 Scavenger inserts Heat Sink into recycling unit. 00616_ K-01 Serf collects debris. 00617_ R-06 Scavenger inserts Aluminum Leg into recycling unit. 00618_ Recycling unit begins recycling process. 00619_ K-01 Serf collects debris. 00620_ R-06 Scavenger inserts Lgt. Ion Engine into recycling unit. 00620_ Aluminum Leg destroyed. 00622_ Lgt. Assault Rifle destroyed. 00623_ K-01 Serf collects debris. 00626_ Acquired Flight Unit. 00626_ K-01 Serf collects debris. 00628_ Acquired Flight Unit. 00630_ K-01 Serf collects debris. 00630_ Acquired Flight Unit. 00638_ Flight Unit destroyed. 00651_ Ion Engine destroyed. 00655_ Flight Unit destroyed. 00656_ Acquired Sml. Laser. Map ----- +----------------------------------------------------+ | ??????????????????????############### # # | | ??????????????? + ||[# | | ??????????????????????### ####+###### # || # | | ????????????????????????# ## # #! |[ # | | ????????????????????????# ## """"" ### ########## | | ????????????????????????# ## """"" #?# #????????? | | ????????????????????????# ## """"" #?# #????????? | | ???###################### ## """"" #?# #????????? | | ???# + """"" #?# #????????? | | ???# = % # """"" ### #????????? | | ???# [== % / """"" + #????????? | | ???###+################# # ## #????????? | | ?????# #??####### #####+##### ##???????? | | ###### # # ##### ##### #???????? | | # # """ # +??????#? | | # # """ #sgg##+######## #???? ?? | | + !!! # """ # s # # #?? ???? | | # !!! # # # % # ##+###??? | | # !!! # """ # # % # ^ #??? | | # ## # """ + # #% ##?? | | # ## # """ # # /% %""" | | # ########### # # # "Y" | | # #?????????#######+## # # | | # #??????????# # # #### | | # #??????????# ########### #??? | | # #??????????#+## T @[#?????????# = #??? | | # #?????????????# [[[#?????????# # #?? | | + #?????????????# [[[#?????????# # = ? | | # #?????????????+ u ???????? # | | + #?????????????# ??????? # | | # #?????????????# ?????? # ## | | # #?????????????# ####### ????##+###?#####?? | | # ###+#########?# ???????####????? ??????????? | | # ???????????????? ??????????? | | # ???????????????? ??????????? | | # ???????????????????????????? | | # ###+###############??????????????????????????? | | # #?????????# #??????????????????????????? | | # #?????????# """" #??????#####???????????????? | | # #?????????# """" ######## #???????????????? | | # #?????????# """" ## #???????????????? | | # #??????????? ??# ##### #???????????????? | | # ##############+##### #???## ##???????????????? | | # # + #????# #????????????????? | | # # """ """ # ##### #????# #????????????????? | | # # """ """ # #???# #????# #????????????????? | | # # """ """ + #??## ##???# #????????????????? | | # # #### #??# #???# ######## #???????? | | # # #??# #??# #???# #???????? | | # # #??# #??# #???########## #???????? | +----------------------------------------------------+ Best States ------------- Heat Dissipation 25 Energy Generation 10 Energy Capacity 250 Matter Stores 300 Matter Capacity 300 Sight Range 16 Terrain Scan Density 60 Evasion (%) 50 Item Schematics ----------------- None Robot Schematics ------------------ None Fabricated ------------ Nothing Alien Tech Used ----------------- None Achievements -------------- None Challenges ------------ None Game ------ Seed ScanThunderDerivative Manual? 0 Play Time 00:08:52 Cumulative 82.9 hours Start 2021.02.14 @ 19:01:20 End 2021.02.14 @ 19:08:22 Sessions 1 Manual Loads 0 Difficulty Rogue Special Mode None Game No. 141 Rogue 141 Adventurer 0 Explorer 0 Win Type - Total 0 Types 0/0/0/0/0/0/0/0/0 Lore% 45 Gallery% 50 Achievement% 33 Wizard Run 0 Options --------- ASCII 0 Keyboard 0 Movement Mouse Keybinds 0 Fullscreen 1 Font 12/Smallcaps Map View 83x54 Tactical HUD 1 Map Filters NONE Filters NONE Steam 1 RUN: 2c90000c-1011-413a-96c8-2d5cf3259cea